bitfinex/quotes_SOLUSD_20250814
["timestamp","ask_amount","ask_price","bid_price","bid_amount"]
[1755188397234,15.10621557,192.11,192.05,0.66]
[1755188397435,15.10621557,192.11,192.05,19.32297063]
[1755188397636,18.66297063,192.09,192.03,18.66297063]
[1755188397852,44.7,192.08,192.04,18.66297063]
[1755188398011,44.7,192.08,192.04,19.32297063]
[1755188398210,44.7,192.08,192.04,18.66297063]
[1755188398622,44.7,192.08,192.04,19.32297063]
[1755188398956,44.7,192.08,192.03,18.66297063]
[1755188399240,15.10621557,192.07,192.01,18.66297063]
[1755188399420,15.10621557,192.04,191.99,18.66297063]
[1755188399606,44.7,192.03,192.01,18.66297063]
[1755188399812,44.7,192.03,192.02,18.66297063]
[1755188400010,44.7,192.03,192.02,19.32297063]
[1755188400214,15.10621557,192.13,192.02,19.32297063]
[1755188400549,18.66297063,192.17,192.11,18.66297063]
[1755188400733,44.7,192.16,192.12,18.66297063]
[1755188400935,18.66297063,192.14,192.06,18.66297063]
[1755188401127,15.10621557,192.12,192.07,18.66297063]
[1755188401329,33.7691862,192.1,191.98,0.03]
[1755188401636,18.66297063,192.08,192.01,18.66297063]
[1755188401944,63.34297063,192.07,192.0,18.66297063]
[1755188402150,44.68,192.06,192.04,18.66297063]
[1755188402445,15.10621557,192.11,192.05,19.34297063]
[1755188402647,44.68,192.1,192.08,18.66297063]
[1755188402819,15.10621557,192.13,192.08,18.66297063]
[1755188403155,60.45621557,192.12,192.06,18.66297063]
[1755188403448,44.68,192.12,192.09,18.66297063]
[1755188403651,44.68,192.12,192.1,18.66297063]
[1755188403819,44.68,192.12,192.11,19.34297063]
[1755188404445,44.68,192.12,192.11,18.66297063]
[1755188405017,44.68,192.12,192.11,19.34297063]
[1755188405220,0.06,192.14,192.11,19.34297063]
[1755188405455,0.06,192.14,192.13,18.66297063]
[1755188405745,0.06,192.14,192.13,19.34297063]
[1755188405945,0.06,192.19,192.13,19.34297063]
[1755188405946,0.06,192.19,192.16,26.0]
[1755188406128,4.17623515,192.36,192.21,26.0]
[1755188406129,0.67,192.32,192.21,26.0]
[1755188406330,0.06,192.36,192.31,18.66297063]
[1755188406331,0.67,192.35,192.31,18.66297063]
[1755188406655,44.66,192.34,192.33,18.66297063]
[1755188406961,44.66,192.34,192.26,0.68]
[1755188407119,44.66,192.34,192.33,18.66297063]
[1755188407315,44.66,192.34,192.33,19.34297063]
[1755188407764,44.66,192.34,192.28,0.68]
[1755188407933,44.66,192.34,192.25,0.68]
[1755188408239,15.10621557,192.33,192.27,18.66297063]
[1755188408419,15.77621557,192.33,192.28,18.66297063]
[1755188408840,15.10621557,192.33,192.28,18.66297063]
[1755188409019,15.77621557,192.33,192.28,18.66297063]
[1755188409218,15.77621557,192.33,192.24,0.68]
[1755188409650,34.4391862,192.33,192.26,18.66297063]
[1755188409826,15.77621557,192.33,192.27,18.66297063]
[1755188410226,15.77621557,192.33,192.28,18.66297063]
[1755188410428,15.10621557,192.31,192.26,18.66297063]
[1755188410635,15.77621557,192.31,192.26,18.66297063]
[1755188410854,0.67,192.3,192.26,18.66297063]
[1755188411161,44.64,192.29,192.26,18.66297063]
[1755188411656,44.64,192.29,192.21,0.68]
[1755188411854,15.10621557,192.28,192.23,18.66297063]
[1755188412055,0.67,192.27,192.23,18.66297063]
[1755188412239,0.67,192.27,192.2,18.66297063]
[1755188412240,33.7691862,192.26,192.2,18.66297063]
[1755188412442,15.10621557,192.2,192.1,0.68]
[1755188412635,44.62,192.19,192.14,18.66297063]
[1755188412840,44.62,192.19,192.18,18.66297063]
[1755188413159,44.62,192.19,192.15,0.68]
[1755188413370,44.62,192.19,192.18,18.66297063]
[1755188413730,44.6,192.23,192.18,19.34297063]
[1755188413929,44.6,192.23,192.21,18.66297063]
[1755188414642,0.67,192.3,192.22,18.66297063]
[1755188414840,44.6,192.29,192.25,18.66297063]
[1755188415043,15.10621557,192.28,192.26,18.66297063]
[1755188415441,15.10621557,192.28,192.25,18.66297063]
[1755188416147,44.6,192.29,192.26,18.66297063]
[1755188416331,44.6,192.29,192.27,18.66297063]
[1755188416747,44.6,192.29,192.26,18.66297063]
[1755188416960,44.6,192.29,192.27,18.66297063]
[1755188417265,44.6,192.29,192.28,18.66297063]
[1755188417767,44.6,192.29,192.22,0.68]
[1755188417768,44.66,192.29,192.22,0.68]
[1755188418079,15.77621557,192.28,192.19,0.68]
[1755188418257,44.66,192.29,192.19,0.68]
[1755188418447,44.66,192.29,192.25,18.66297063]
[1755188418772,15.77621557,192.28,192.23,18.66297063]
[1755188418963,0.67,192.27,192.23,18.66297063]
[1755188419174,15.10621557,192.28,192.2,0.68]
[1755188419467,34.4391862,192.28,192.22,18.66297063]
[1755188419656,33.7691862,192.26,192.2,18.66297063]
[1755188419965,0.67,192.25,192.2,18.66297063]
[1755188420157,44.58,192.24,192.19,18.66297063]
[1755188420357,44.58,192.24,192.21,18.66297063]
[1755188420665,0.67,192.23,192.19,18.66297063]
[1755188420866,44.58,192.24,192.15,0.68]
[1755188421068,44.58,192.24,192.21,18.66297063]
[1755188421568,15.10621557,192.21,192.15,18.66297063]
[1755188421735,15.10621557,192.18,192.12,18.66297063]
[1755188421940,15.10621557,192.18,192.07,0.03]
[1755188421941,33.7691862,192.16,192.07,0.03]
[1755188422136,33.7691862,192.16,192.09,18.66297063]
[1755188422137,15.10621557,192.14,192.09,18.66297063]
[1755188422573,0.67,192.13,192.07,0.03]
[1755188422867,44.56,192.12,192.07,0.03]
[1755188423072,0.67,192.11,192.07,18.69297063]
[1755188423646,44.56,192.12,192.08,18.66297063]
[1755188423947,15.10621557,192.17,192.11,18.66297063]
[1755188424148,26.0,192.23,192.15,18.66297063]
[1755188424351,15.10621557,192.2,192.16,18.66297063]
[1755188424550,15.77621557,192.2,192.16,18.66297063]
[1755188424771,44.56,192.22,192.18,18.66297063]
[1755188424981,15.10621557,192.21,192.18,18.66297063]
[1755188425219,44.56,192.22,192.2,18.66297063]
[1755188425398,15.77621557,192.21,192.17,18.66297063]
[1755188425593,0.67,192.2,192.16,18.66297063]
[1755188425786,0.67,192.2,192.17,18.66297063]
[1755188426021,0.67,192.2,192.16,18.66297063]
[1755188426589,15.10621557,192.21,192.16,18.66297063]
[1755188426590,38.09,192.24,192.19,18.66297063]
[1755188426807,44.54,192.23,192.22,18.66297063]
[1755188427010,44.54,192.23,192.18,0.03]
[1755188427200,34.4391862,192.22,192.18,0.03]
[1755188427401,0.67,192.21,192.18,0.03]
[1755188427616,44.54,192.23,192.19,18.66297063]
[1755188427926,44.54,192.23,192.2,18.66297063]
[1755188428214,44.54,192.23,192.19,18.66297063]
[1755188428421,44.54,192.23,192.2,18.66297063]
[1755188429204,44.54,192.23,192.22,18.66297063]
[1755188429425,44.54,192.23,192.19,18.66297063]
[1755188429731,44.54,192.23,192.22,18.66297063]
[1755188430104,44.54,192.23,192.22,19.34297063]
[1755188430303,44.54,192.23,192.22,18.66297063]
[1755188430511,44.54,192.23,192.18,0.71]
[1755188430708,44.54,192.23,192.22,18.66297063]
[1755188431300,44.54,192.23,192.18,0.03]
[1755188431507,15.76621557,192.28,192.22,18.66297063]
[1755188431719,0.06,192.29,192.27,18.66297063]
[1755188431918,0.06,192.29,192.28,18.66297063]
[1755188432219,44.58,192.29,192.27,18.66297063]
[1755188432422,44.58,192.29,192.25,18.66297063]
[1755188432638,44.58,192.29,192.22,0.7]
[1755188432837,15.10621557,192.26,192.18,0.03]
[1755188433037,44.5,192.25,192.22,18.66297063]
[1755188433206,44.5,192.25,192.24,18.66297063]
[1755188433410,44.5,192.25,192.21,18.66297063]
[1755188433917,0.66,192.28,192.23,18.66297063]
[1755188434230,44.5,192.27,192.24,0.7]
[1755188434414,0.06,192.29,192.26,18.66297063]
[1755188434601,44.56,192.29,192.28,18.66297063]
[1755188434804,44.56,192.29,192.28,19.36297063]
[1755188436139,0.06,192.29,192.28,19.36297063]
[1755188436433,0.06,192.33,192.28,45.36297063]
[1755188436637,0.06,192.33,192.32,18.66297063]
[1755188437013,0.06,192.33,192.32,19.36297063]
[1755188438237,0.06,192.35,192.34,26.0]
[1755188438439,0.06,192.35,192.34,45.36297063]
[1755188439023,0.06,192.35,192.34,0.7]
[1755188439221,0.06,192.35,192.29,0.7]
[1755188439421,0.06,192.35,192.34,18.66297063]
[1755188439725,0.06,192.35,192.34,19.36297063]
[1755188439917,35.42,192.44,192.34,19.36297063]
[1755188440112,35.42,192.44,192.42,18.66297063]
[1755188440729,35.42,192.44,192.43,18.66297063]
[1755188440933,35.42,192.44,192.35,0.7]
[1755188441139,35.42,192.44,192.39,18.66297063]
[1755188441319,0.66,192.43,192.4,18.66297063]
[1755188441521,0.66,192.43,192.41,18.66297063]
[1755188441823,15.10621557,192.41,192.3,0.7]
[1755188442030,0.66,192.4,192.3,0.7]
[1755188442231,0.66,192.4,192.36,18.66297063]
[1755188442421,0.66,192.4,192.37,18.66297063]
[1755188442627,0.66,192.39,192.37,18.66297063]
[1755188442945,15.10621557,192.41,192.37,18.66297063]
[1755188443120,0.66,192.4,192.32,0.7]
[1755188443326,15.10621557,192.42,192.32,0.7]
[1755188443539,15.10621557,192.42,192.38,18.66297063]
[1755188443837,0.66,192.43,192.41,18.66297063]
[1755188444939,34.76,192.44,192.42,18.66297063]
[1755188445240,34.76,192.44,192.43,18.66297063]
[1755188445449,35.42,192.44,192.34,26.0]
[1755188445622,35.42,192.44,192.4,18.66297063]
[1755188446143,34.76,192.44,192.4,18.66297063]
[1755188446342,34.76,192.44,192.34,26.7]
[1755188446343,34.76,192.44,192.43,18.66297063]
[1755188447752,34.76,192.44,192.42,18.66297063]
[1755188448632,34.76,192.44,192.43,18.66297063]
[1755188448819,34.76,192.44,192.42,18.66297063]
[1755188449021,34.76,192.44,192.43,18.66297063]
[1755188449539,0.06,192.46,192.43,19.36297063]
[1755188449745,0.06,192.46,192.45,18.66297063]
[1755188450318,0.72,192.46,192.38,0.7]
[1755188450548,15.10621557,192.45,192.39,18.66297063]
[1755188450844,0.72,192.46,192.42,18.66297063]
[1755188451346,0.72,192.46,192.43,18.66297063]
[1755188451554,0.72,192.46,192.38,0.7]
[1755188451741,0.72,192.46,192.43,18.66297063]
[1755188452051,0.06,192.46,192.43,0.7]
[1755188452232,0.06,192.46,192.45,18.66297063]
[1755188452550,0.06,192.46,192.4,0.7]
[1755188452747,0.06,192.46,192.45,18.66297063]
[1755188453752,0.72,192.46,192.42,18.66297063]
[1755188453922,0.66,192.45,192.42,18.66297063]
[1755188454533,0.66,192.45,192.41,18.66297063]
[1755188455081,0.06,192.46,192.44,18.66297063]
[1755188455646,0.06,192.46,192.38,0.7]
[1755188455826,0.06,192.46,192.43,18.66297063]
[1755188456026,0.06,192.46,192.42,18.66297063]
[1755188456240,0.66,192.45,192.42,18.66297063]
[1755188456557,0.66,192.44,192.41,18.66297063]
[1755188456731,44.3,192.44,192.38,0.7]
[1755188456932,44.3,192.44,192.41,18.66297063]
[1755188457439,44.3,192.44,192.42,18.66297063]
[1755188457751,34.4291862,192.43,192.31,31.9]
[1755188458051,0.66,192.42,192.37,18.66297063]
[1755188458240,0.66,192.45,192.41,18.66297063]
[1755188458434,15.10621557,192.45,192.43,18.66297063]
[1755188458640,44.36,192.46,192.38,0.7]
[1755188458856,0.66,192.45,192.42,18.66297063]
[1755188459068,0.66,192.45,192.43,18.66297063]
[1755188459362,44.36,192.46,192.42,18.66297063]
[1755188459536,44.36,192.46,192.38,0.7]
[1755188459737,0.66,192.45,192.42,18.66297063]
[1755188460075,33.7691862,192.44,192.36,0.03]
[1755188460250,15.10621557,192.41,192.36,0.03]
[1755188460564,0.06,192.46,192.4,18.66297063]
[1755188460737,44.28,192.45,192.42,12.02296888]
[1755188461062,44.28,192.45,192.43,12.02296888]
[1755188461260,44.34,192.45,192.42,12.02296888]
[1755188461469,44.99,192.45,192.42,12.02296888]
[1755188461633,44.34,192.45,192.43,12.02296888]
[1755188461836,44.32,192.45,192.44,12.02296888]
[1755188462165,44.32,192.45,192.43,12.02296888]
[1755188462464,44.32,192.45,192.42,12.02296888]
[1755188462628,44.32,192.45,192.43,12.02296888]
[1755188462827,44.32,192.45,192.44,12.02296888]
[1755188463128,44.32,192.45,192.43,12.02296888]
[1755188463749,44.97,192.45,192.4,0.03]
[1755188463943,44.97,192.45,192.43,12.02296888]
[1755188464476,44.97,192.45,192.42,12.02296888]
[1755188464956,44.32,192.45,192.44,12.02296888]
[1755188465156,44.32,192.45,192.43,12.02296888]
[1755188465336,44.32,192.45,192.4,0.03]
[1755188465541,44.32,192.45,192.43,12.02296888]
[1755188465739,0.65,192.44,192.42,12.02296888]
[1755188465946,44.32,192.45,192.42,12.02296888]
[1755188466150,44.32,192.45,192.43,12.02296888]
[1755188466677,44.32,192.45,192.4,0.03]
[1755188466973,44.32,192.45,192.44,12.02296888]
[1755188467272,0.06,192.45,192.44,12.02296888]
[1755188467655,0.71,192.45,192.42,12.02296888]
[1755188467965,0.65,192.44,192.4,0.03]
[1755188468179,44.22,192.43,192.41,12.02296888]
[1755188468365,44.22,192.43,192.42,12.02296888]
[1755188470292,0.06,192.45,192.42,12.69296888]
[1755188470447,0.06,192.45,192.44,12.02296888]
[1755188470647,0.06,192.45,192.44,12.69296888]
[1755188470877,0.06,192.45,192.44,12.02296888]
[1755188471572,0.06,192.45,192.44,12.69296888]
[1755188472159,0.06,192.45,192.44,12.02296888]
[1755188473179,0.06,192.45,192.44,12.69296888]
[1755188473484,0.06,192.45,192.44,12.02296888]
[1755188473848,0.06,192.45,192.4,0.03]
[1755188473849,0.06,192.45,192.43,12.02296888]
[1755188474047,0.71,192.45,192.43,12.02296888]
[1755188474251,0.71,192.45,192.4,0.03]
[1755188474453,0.71,192.45,192.43,12.02296888]
[1755188474651,0.06,192.45,192.44,12.02296888]
[1755188475059,0.71,192.45,192.43,12.02296888]
[1755188475586,0.71,192.45,192.44,12.02296888]
[1755188476152,0.06,192.45,192.44,12.02296888]
[1755188480064,0.06,192.45,192.44,12.69296888]
[1755188480862,0.06,192.46,192.45,12.02296888]
[1755188481061,0.06,192.46,192.45,12.69296888]
[1755188481577,0.06,192.46,192.45,12.02296888]
[1755188482564,0.71,192.46,192.44,12.02296888]
[1755188482771,4.10790974,192.46,192.44,12.02296888]
[1755188482969,0.65,192.45,192.42,12.02296888]
[1755188483356,0.65,192.44,192.42,12.02296888]
[1755188483585,0.65,192.44,192.4,0.03]
[1755188483765,0.65,192.44,192.41,12.02296888]
[1755188483970,3.45747185,192.46,192.42,12.02296888]
[1755188483971,4.10747185,192.46,192.42,12.02296888]
[1755188484286,0.71,192.46,192.42,12.02296888]
[1755188484492,4.10747185,192.46,192.42,12.02296888]
[1755188484690,0.65,192.45,192.42,12.02296888]
[1755188484864,0.65,192.45,192.4,0.03]
[1755188485065,0.06,192.46,192.43,12.02296888]
[1755188485264,3.45747185,192.46,192.44,12.02296888]
[1755188485492,0.06,192.46,192.45,12.02296888]
[1755188485991,0.06,192.46,192.45,12.69296888]
[1755188487292,0.2,192.49,192.45,55.91593776]
[1755188487610,0.06,192.51,192.48,43.22296888]
[1755188487793,0.06,192.52,192.5,38.02296888]
[1755188488102,0.06,192.52,192.51,12.69296888]
[1755188489792,0.06,192.52,192.47,0.67]
[1755188490102,0.65,192.51,192.46,26.0]
[1755188490305,0.06,192.52,192.46,26.0]
[1755188490471,0.65,192.51,192.48,12.02296888]
[1755188490673,0.65,192.51,192.49,12.02296888]
[1755188490879,0.65,192.51,192.44,0.67]
[1755188490880,0.06,192.52,192.44,0.67]
[1755188491169,0.66,192.5,192.45,12.02296888]
[1755188491394,0.66,192.5,192.4,0.03]
[1755188491395,0.66,192.49,192.47,12.02296888]
[1755188491983,0.72,192.52,192.42,26.0]
[1755188492282,27.12918445,192.51,192.44,12.02296888]
[1755188492691,0.66,192.5,192.44,12.02296888]
[1755188493398,0.66,192.5,192.45,12.02296888]
[1755188493694,0.66,192.5,192.4,0.03]
[1755188493695,15.10621557,192.49,192.42,12.02296888]
[1755188493900,15.64644,192.52,192.46,12.02296888]
[1755188494097,15.64644,192.52,192.4,0.03]
[1755188494098,44.0,192.51,192.42,0.68]
[1755188494306,0.72,192.52,192.5,12.02296888]
[1755188494475,44.04,192.52,192.45,0.68]
[1755188494800,0.66,192.51,192.47,12.02296888]
[1755188495121,0.66,192.5,192.48,12.02296888]
[1755188495473,44.04,192.52,192.49,12.02296888]
[1755188495674,44.04,192.52,192.5,12.02296888]
[1755188495892,44.7,192.52,192.5,12.02296888]
[1755188496379,44.04,192.52,192.51,12.02296888]
[1755188496579,0.06,192.52,192.51,12.70296888]
[1755188496780,0.06,192.54,192.53,26.0]
[1755188497011,0.06,192.56,192.53,69.22296888]
[1755188497206,0.06,192.56,192.55,43.22296888]
[1755188497420,43.96,192.64,192.63,12.02296888]
[1755188497717,0.2,192.66,192.63,12.70296888]
[1755188497883,0.2,192.66,192.65,12.02296888]
[1755188498493,0.66,192.77,192.68,26.0]
[1755188498680,44.6,192.77,192.75,18.59793441]
[1755188498880,0.66,192.76,192.74,18.59793441]
[1755188499303,0.66,192.75,192.73,18.59793441]
[1755188499483,0.66,192.75,192.67,0.68]
[1755188499484,43.94,192.77,192.74,18.59793441]
[1755188499683,0.66,192.75,192.74,18.59793441]
[1755188499916,43.94,192.77,192.74,18.59793441]
[1755188500080,43.94,192.77,192.69,0.68]
[1755188500485,43.92,192.82,192.76,18.59793441]
[1755188500689,43.92,192.82,192.81,18.59793441]
[1755188501506,44.56,192.88,192.81,18.59793441]
[1755188501698,44.56,192.88,192.84,18.59793441]
[1755188501899,0.66,192.87,192.84,18.59793441]
[1755188502516,43.9,192.88,192.86,18.59793441]
[1755188502688,43.9,192.88,192.87,18.59793441]
[1755188504187,0.66,192.88,192.8,0.68]
[1755188504416,15.10621557,192.9,192.86,18.59793441]
[1755188504596,18.59793441,192.87,192.83,26.0]
[1755188504804,18.59793441,192.86,192.8,0.68]
[1755188505001,44.54,192.89,192.8,0.68]
[1755188505212,43.88,192.89,192.81,44.59793441]
[1755188505714,43.88,192.89,192.81,26.0]
[1755188505909,43.84,192.9,192.83,18.59793441]
[1755188506106,43.84,192.91,192.82,0.68]
[1755188506302,18.59793441,192.9,192.84,44.59793441]
[1755188506612,18.59793441,192.9,192.86,26.0]
[1755188506913,43.84,192.91,192.86,26.0]
[1755188507124,18.59793441,192.89,192.82,0.68]
[1755188507300,18.59793441,192.88,192.82,26.68]
[1755188507643,0.72,192.92,192.82,26.68]
[1755188507811,18.59793441,192.85,192.82,26.0]
[1755188508320,0.66,192.89,192.82,26.0]
[1755188508619,18.59793441,192.85,192.82,26.0]
[1755188508993,0.66,192.87,192.81,26.0]
[1755188509190,43.82,192.91,192.81,26.0]
[1755188509418,19.25793441,192.89,192.82,18.59793441]
[1755188509609,18.59793441,192.87,192.81,18.59793441]
[1755188509790,18.59793441,192.85,192.8,26.0]
[1755188509993,15.10621557,192.9,192.8,26.0]
[1755188510192,18.59793441,192.86,192.8,26.0]
[1755188510505,15.10621557,192.9,192.8,26.0]
[1755188510506,0.06,192.89,192.83,18.59793441]
[1755188511005,0.06,192.89,192.8,26.0]
[1755188511006,18.59793441,192.84,192.8,26.0]
[1755188511202,18.59793441,192.86,192.8,26.0]
[1755188511412,18.59793441,192.87,192.81,18.59793441]
[1755188511617,18.59793441,192.86,192.8,26.0]
[1755188511810,18.59793441,192.86,192.8,44.59793441]
[1755188512229,18.59793441,192.88,192.81,18.59793441]
[1755188512431,0.06,192.89,192.81,0.68]
[1755188512650,19.31793441,192.89,192.82,18.59793441]
[1755188512942,18.59793441,192.88,192.82,18.59793441]
[1755188513126,19.31793441,192.89,192.82,18.59793441]
[1755188513436,18.59793441,192.86,192.8,26.0]
[1755188513746,0.66,192.87,192.8,26.0]
[1755188513906,5.18510836,192.86,192.8,44.59793441]
[1755188514521,23.78304277,192.86,192.8,26.0]
[1755188514709,0.66,192.85,192.74,31.88]
[1755188514928,18.59793441,192.8,192.74,18.59793441]
[1755188515188,0.66,192.81,192.73,18.59793441]
[1755188515308,0.66,192.81,192.67,0.68]
[1755188515309,0.66,192.8,192.67,0.68]
[1755188515626,18.59793441,192.72,192.71,15.557342]
[1755188515804,23.78680946,192.72,192.71,15.557342]
[1755188516003,48.90863906,192.73,192.68,18.59793441]
[1755188516212,67.50657347,192.73,192.66,18.59793441]
[1755188516433,48.90863906,192.73,192.67,18.59793441]
[1755188516622,48.90863906,192.73,192.66,44.59793441]
[1755188516807,18.59793441,192.72,192.65,19.27793441]
[1755188517008,18.59793441,192.71,192.65,19.27793441]
[1755188517228,18.59793441,192.72,192.66,18.59793441]
[1755188517426,49.56863906,192.73,192.67,18.59793441]
[1755188517632,68.16657347,192.73,192.66,18.59793441]
[1755188517939,43.72,192.73,192.67,44.59793441]
[1755188518236,43.72,192.73,192.68,18.59793441]
[1755188518434,44.38,192.73,192.66,5.19047965]
[1755188518640,49.56865982,192.73,192.68,11.98995868]
[1755188518965,0.66,192.72,192.67,26.0]
[1755188519456,0.66,192.71,192.67,26.0]
[1755188519659,0.66,192.71,192.67,11.98995868]
[1755188519844,60.8986185,192.73,192.67,11.98995868]
[1755188520044,60.8986185,192.73,192.66,11.98995868]
[1755188520261,11.98995868,192.7,192.64,0.03]
[1755188520442,11.98995868,192.71,192.65,11.98995868]
[1755188520647,11.98995868,192.7,192.64,12.01995868]
[1755188520845,11.98995868,192.69,192.64,0.03]
[1755188521157,11.98995868,192.66,192.64,0.03]
[1755188521332,44.34,192.65,192.64,0.03]
[1755188521857,43.68,192.65,192.64,0.03]
[1755188522047,49.53076044,192.65,192.64,0.03]
[1755188522246,5.85076044,192.65,192.64,0.03]
[1755188522448,49.55076044,192.65,192.64,0.03]
[1755188523238,44.36,192.65,192.64,0.03]
[1755188523469,49.55076044,192.65,192.64,0.03]
[1755188523664,43.7,192.65,192.64,0.03]
[1755188525671,76.64693469,192.65,192.64,0.03]
[1755188525966,76.64693469,192.65,192.52,4.13571269]
[1755188525967,15.10621557,192.62,192.5,0.66]
[1755188526168,45.26572208,192.63,192.46,12.64995868]
[1755188526169,11.98995868,192.52,192.46,12.64995868]
[1755188526368,55.64995868,192.52,192.46,0.66]
[1755188526661,43.66,192.52,192.48,11.98995868]
[1755188526836,43.66,192.52,192.49,26.66]
[1755188527036,43.64,192.55,192.5,0.66]
[1755188527268,43.64,192.55,192.52,11.98995868]
[1755188527761,5.19426553,192.52,192.46,11.98995868]
[1755188527963,43.64,192.51,192.45,0.66]
[1755188528151,43.64,192.51,192.46,11.98995868]
[1755188528350,43.64,192.51,192.49,11.98995868]
[1755188528548,43.64,192.51,192.5,12.64995868]
[1755188528749,15.76621557,192.58,192.5,12.64995868]
[1755188528750,27.75617425,192.58,192.5,12.64995868]
[1755188529036,43.64,192.56,192.52,11.98995868]
[1755188529650,44.3,192.56,192.52,11.98995868]
[1755188529856,43.64,192.56,192.52,11.98995868]
[1755188530056,48.83331251,192.56,192.52,11.98995868]
[1755188530344,43.64,192.56,192.53,11.98995868]
[1755188530539,43.62,192.58,192.55,11.98995868]
[1755188530752,55.60995868,192.59,192.51,26.0]
[1755188530970,0.66,192.57,192.49,11.98995868]
[1755188531172,43.62,192.56,192.49,11.98995868]
[1755188531379,43.62,192.56,192.51,11.98995868]
[1755188531550,43.62,192.56,192.53,11.98995868]
[1755188531953,43.62,192.56,192.55,11.98995868]
[1755188532151,44.28,192.59,192.51,5.19453534]
[1755188532351,11.98995868,192.57,192.5,26.0]
[1755188532577,0.66,192.58,192.5,26.0]
[1755188532875,43.62,192.59,192.52,26.0]
[1755188533052,43.62,192.59,192.56,11.98995868]
[1755188533373,44.28,192.59,192.54,11.98995868]
[1755188533542,0.66,192.58,192.54,11.98995868]
[1755188533744,0.66,192.58,192.46,15.10621557]
[1755188533745,11.98995868,192.56,192.48,5.19533207]
[1755188533973,17.18395442,192.53,192.44,4.22766365]
[1755188534171,11.98995868,192.52,192.46,11.98995868]
[1755188534375,5.19399574,192.53,192.44,5.19642485]
[1755188534376,55.58995868,192.51,192.44,5.19642485]
[1755188534547,55.58995868,192.51,192.45,11.98995868]
[1755188534866,44.26,192.51,192.44,37.98995868]
[1755188535449,44.26,192.51,192.46,26.0]
[1755188535647,44.26,192.51,192.41,0.66]
[1755188535648,11.98995868,192.49,192.41,5.85710592]
[1755188535852,44.26,192.51,192.44,17.18615163]
[1755188536165,49.45463395,192.51,192.46,11.98995868]
[1755188536477,43.58,192.5,192.49,11.98995868]
[1755188536859,43.58,192.54,192.49,11.98995868]
[1755188537175,43.58,192.54,192.51,11.98995868]
[1755188537378,43.58,192.54,192.52,11.98995868]
[1755188537879,43.58,192.54,192.49,5.19507506]
[1755188538046,43.58,192.54,192.51,11.98995868]
[1755188538764,0.66,192.53,192.5,18.64324551]
[1755188538964,0.66,192.53,192.49,18.64324551]
[1755188539265,43.58,192.54,192.49,0.66]
[1755188539475,43.58,192.54,192.52,18.64324551]
[1755188539862,43.58,192.54,192.5,18.64324551]
[1755188540083,43.58,192.54,192.51,18.64324551]
[1755188540286,43.58,192.54,192.5,18.64324551]
[1755188540462,44.24,192.54,192.5,18.64324551]
[1755188541050,43.58,192.54,192.51,18.64324551]
[1755188541255,43.58,192.54,192.53,18.64324551]
[1755188541986,43.58,192.54,192.53,23.83724125]
[1755188542477,43.56,192.57,192.53,24.49724125]
[1755188542665,43.56,192.57,192.53,31.19399574]
[1755188542869,44.22,192.57,192.53,31.19399574]
[1755188543061,43.56,192.57,192.55,18.64324551]
[1755188543374,43.56,192.57,192.56,18.64324551]
[1755188543577,0.06,192.58,192.56,19.30324551]
[1755188543756,0.06,192.58,192.57,18.64324551]
[1755188543958,0.06,192.58,192.57,24.49616237]
[1755188545155,0.06,192.58,192.57,5.19291686]
[1755188545363,0.06,192.58,192.53,0.66]
[1755188545652,0.06,192.58,192.57,18.64324551]